[Event "Fagernes Chess GM-Swiss 2025"]
[Site "Fagernes"]
[Date "2025.04.13"]
[Round "1.34"]
[White "Wernberg, Nikolai Olsen"]
[Black "Fiskaaen, Martin Holten"]
[Result "1/2-1/2"]
[Annotator "ChessBase"]
[ECO "A07"]
[WhiteElo "1893"]
[BlackElo "2283"]
[PlyCount "90"]
[EventDate "2025.04.12"]
[EventCountry "NOR"]
[SourceTitle "playchess.com"]
[Source "ChessBase"]
[SourceQuality "1"]
[TimeControl "40/6000+30:2400+30"]

1. Nf3 {[%emt 0:00:07]} d5 {[%emt 0:00:08]} 2. g3 {[%emt 0:00:09]} Nf6 {[%emt 0:01:18]} 3. Bg2 {[%emt 0:00:11]} c6 {[%emt 0:00:48]} 4. O-O {[%emt 0:00:20]} Bg4 {[%emt 0:00:20]} 5. h3 {[%emt 0:00:21]} Bh5 {[%emt 0:01:08]} 6. d3 {[%emt 0:00:26]} e6 {[%emt 0:01:52]} 7. c4 {[%emt 0:00:21]} Nbd7 {[%emt 0:08:32]} 8. cxd5 {[%emt 0:00:24]} exd5 {[%emt 0:03:36]} 9. e4 {[%emt 0:00:22]} dxe4 {[%emt 0:10:55]} 10. dxe4 {[%emt 0:00:08]} Nc5 {[%emt 0:02:33]} 11. Nc3 {[%emt 0:01:16]} Be7 {[%emt 0:09:29]} 12. Qxd8+ {[%emt 0:00:40]} Rxd8 {[%emt 0:00:18]} 13. Nh4 {[%emt 0:00:18]} O-O {[%emt 0:10:41]} 14. Nf5 {[%emt 0:05:30]} Rfe8 {[%emt 0:01:46]} 15. e5 {[%emt 0:07:15]} Nfd7 {[%emt 0:03:07]} 16. Nxe7+ {[%emt 0:00:55]} Rxe7 {[%emt 0:00:03]} 17. g4 {[%emt 0:01:28]} Bg6 {[%emt 0:00:22]} 18. Rd1 {[%emt 0:01:15]} f6 {[%emt 0:08:49]} 19. exf6 {[%emt 0:04:47]} gxf6 {[%emt 0:00:08]} 20. b4 {[%emt 0:06:06]} Ne4 {[%emt 0:11:34]} 21. Bb2 {[%emt 0:04:07]} Nxc3 {[%emt 0:02:47]} 22. Bxc3 {[%emt 0:01:14]} Kf7 {[%emt 0:05:18]} 23. b5 {[%emt 0:04:51]} cxb5 {[%emt 0:04:30]} 24. Rd6 {[%emt 0:03:49]} Rc8 {[%emt 0:04:24]} 25. Bd5+ {[%emt 0:06:22]} Ke8 {[%emt 0:02:05]} 26. Bb4 {[%emt 0:01:32]} Rc7 {[%emt 0:07:49]} 27. Rd1 {[%emt 0:03:40]} Bf7 {[%emt 0:03:30]} 28. Bf3 {[%emt 0:14:12]} Re6 {[%emt 0:04:28]} 29. R6d4 {[%emt 0:01:45]} Bg6 {[%emt 0:00:59]} 30. Bd6 {[%emt 0:06:10]} Rc4 {[%emt 0:00:47]} 31. Bxb7 {[%emt 0:03:07]} Rxd4 {[%emt 0:00:37]} 32. Rxd4 {[%emt 0:00:18]} Ne5 {[%emt 0:00:05]} 33. f4 {[%emt 0:01:45]} Nc4 {[%emt 0:00:29]} 34. Bc6+ {[%emt 0:01:02]} Kd8 {[%emt 0:01:41]} 35. Bc5+ {[%emt 0:00:35]} Kc7 {[%emt 0:00:10]} 36. Bxb5 {[%emt 0:00:12]} Nd6 {[%emt 0:00:44]} 37. Ba4 {[%emt 0:00:55]} Nb7 {[%emt 0:00:37]} 38. Ba3 {[%emt 0:00:53]} Re3 {[%emt 0:00:30]} 39. Rc4+ {[%emt 0:03:57]} Kb6 {[%emt 0:00:25]} 40. Bb2 {[%emt 0:01:23]} Rxh3 {[%emt 0:00:36]} 41. Bc3 {[%emt 0:43:07]} Nd6 {[%emt 0:17:24]} 42. Rc6+ {[%emt 0:00:00]} Kb7 {[%emt 0:00:05]} 43. Rxd6 {[%emt 0:00:00]} Rxc3 {[%emt 0:00:09]} 44. Rxf6 {[%emt 0:00:00]} Rg3+ {[%emt 0:01:12]} 45. Kf2 {[%emt 0:00:00]} Rxg4 {[%emt 0:01:05]} 1/2-1/2